Cogmind - Beta 16 @@@ ROGUE MODE // 2025.12.08 @ 18:02:02 Player: Martagona Result: Destroyed by G-34 Mercenary with Small Laser Performance ------------- Evolutions (1) 500 Regions Visited (3) 600 Robots Destroyed (15) 75 Value Destroyed (310) 310 Prototype IDs (1) 20 Alien Tech Used (0) 0 Bonus (0) 0 TOTAL SCORE: 1505 Bonus ------- None Cogmind --------- Core Integrity 0/400 Matter 280/300 Energy 58/100 System Corruption 16% Temperature Warm (100) Movement Flying (37) Location -9/Storage Parts ------- > --- POWER (1) -------- (None) > --- PROPULSION (3) --- Flight Unit Flight Unit > --- UTILITY (3) ------ Small Storage Unit > --- WEAPON (2) ------- (None) > --- INVENTORY (8) ---- Wheel Medium Matter Pod (100) Small Laser Peak State ------------ > --- POWER ------------ Light Ion Engine > --- PROPULSION ------- Aluminum Leg Aluminum Leg > --- UTILITY ---------- Cooling System Small Storage Unit Tractor Beam > --- WEAPON ----------- Small Laser Assault Rifle > --- INVENTORY -------- Wheel Wheel Flight Unit Flight Unit Medium Matter Pod Small Laser Improved Medium Laser Heavy Hammer [Rating: 10] Favorites ----------- Power Light Ion Engine Engine Light Ion Engine Propulsion Aluminum Leg Leg Aluminum Leg Wheel Wheel Flight Unit Flight Unit Utility Small Storage Unit Device Tractor Beam Storage Small Storage Unit Protection Light Armor Plating Weapon Small Laser Energy Gun Small Laser Ballistic Gun Light Assault Rifle Launcher Grenade Launcher Impact Weapon Heavy Hammer Build | -11 -10 -9 -9 ------- Run | Yrd Mat Mat Sto Slots Evolved 2 | . . 2 . Power . | . . . . Propulsion 1 | . . 1 . Utility 1 | . . 1 . Weapon . | . . . . Parts Attached 30 | 9 6 11 4 Power 4 | 2 . 1 1 Engine 4 | 2 . 1 1 Core . | . . . . Reactor . | . . . . Propulsion 9 | 3 1 3 2 Treads . | . . . . Leg 5 | 2 1 2 . Wheel 2 | 1 . 1 . Hover . | . . . . Flight 2 | . . . 2 Utility 8 | 2 2 3 1 Device 5 | 2 1 2 . Storage 2 | . 1 1 . Processor . | . . . . Hackware . | . . . . Protection 1 | . . . 1 Artifact . | . . . . Weapon 9 | 2 3 4 . Energy Gun 4 | 1 1 2 . Energy Cannon . | . . . . Ballistic Gun 3 | 1 1 1 . Ballistic Cannon . | . . . . Launcher 1 | . 1 . . Special Weapon . | . . . . Impact Weapon 1 | . . 1 . Slashing Weapon . | . . . . Piercing Weapon . | . . . . Special Melee Weapon . | . . . . Unidentified Prototypes 1 | . . 1 . Corrupted Parts 1 | . . 1 . System Corruption 8 | . . 8 . Parts Lost 15 | . 1 4 10 Power 3 | . . 1 2 Propulsion 4 | . . . 4 Utility 4 | . 1 1 2 Weapon 4 | . . 2 2 Highest Loss Streak 9 | . 1 3 9 To Critical Strikes . | . . . . Average Backups 5 | 3 5 7 5 Power . | . . . . Propulsion 3 | 2 3 4 3 Utility . | . . . . Weapon 1 | . 1 2 1 Tool/Special . | . . . . Unused Backups 2 | . 1 1 . Power . | . . . . Propulsion 1 | . 1 . . Utility . | . . . . Weapon 1 | . . 1 . Tool/Special . | . . . . Average Slot Usage (%) 87 | . 98 86 71 Engine 10 | . 14 9 7 Leg 24 | . 28 25 19 Wheel 1 | . . . 5 Device 16 | . 23 17 6 Storage 10 | . 3 13 13 Energy Gun 9 | . 13 8 9 Ballistic Gun 7 | . 6 8 7 Launcher 2 | . 8 . . Impact Weapon 1 | . . 3 . Peak Build Rating 10 | 9 9 10 9 Average Rating 7 | 5 8 8 6 On Entrance 6 | . 9 7 9 Avg Prop Armor Cover (%) . | . . . . Naked Turns . | . . . . Heaviest Build 16 | 7 12 16 16 Greatest Support 30 | 20 20 30 30 Greatest Overweight (x) 4 | . . . 4 Average Overweight (x) . | . . . . Largest Inventory Capacity 8 | 5 8 8 8 Average Capacity 6 | 5 5 8 7 Most Carried 8 | 5 8 8 7 Average Carried 5 | 3 5 7 5 Final Capacity 8 | 5 8 8 8 Final Carried 8 | 4 8 6 3 Class Distribution -------------------- 53% | Mutant 46% | Scavenger-Mutant Dominant Class ---------------- Mutant | -10/Materials Scavenger-Mutant | -9/Materials Scavenger-Mutant | -9/Storage Resources | -11 -10 -9 -9 ----------- Run | Yrd Mat Mat Sto Matter Collected 640 | 299 160 158 23 Remotely 181 | . . 158 23 Salvage Created 445 | 45 185 215 . Parts 35 | 5 12 18 . Haulers Intercepted . | . . . . Recyclers Shooed 3 | . 2 1 . Parts Field Recycled . | . . . . Retrieved Matter . | . . . . Parts Self-Destructed . | . . . . Prevented . | . . . . Parts Restored . | . . . . Kills | -11 -10 -9 -9 ------- Run | Yrd Mat Mat Sto Combat Hostiles Destroyed 11 | 1 2 8 . Melee 3 | . . 3 . Guns 4 | 1 1 2 . AOE 1 | . 1 . . Classes Destroyed 8 | 2 3 3 . Worker 1 | . 1 . . Builder 1 | . 1 . . Tunneler 1 | 1 . . . Recycler 1 | . 1 . . Swarmer 4 | . . 4 . Grunt 5 | 1 2 2 . Brawler 1 | . . 1 . Sentry 1 | . . 1 . Best Kill Streak 5 | 1 5 4 . Combat Bots Only 4 | 1 2 4 . Max Kills in Single Turn 2 | 1 2 1 . Gunslinging . | . . . . Exploded 1 | . 1 . . Melee 1 | . . 1 . Uniques/NPCs Destroyed . | . . . . Combat | -11 -10 -9 -9 -------- Run | Yrd Mat Mat Sto Hostile Shots Fired 205 | 19 12 80 94 Missed 64 | 4 5 25 30 Hits 141 | 15 7 55 64 Melee 9 | . . 9 . Projectile 132 | 15 7 46 64 Critical Strikes 4 | . . 3 1 Damage Taken 1742 | 162 103 607 870 Core 466 | 23 34 123 286 Absorbed by Shields . | . . . . Core Remaining (%) 83 | 90 77 . . Volleys Fired 48 | 16 18 14 . Largest 2 | 2 2 1 . Hottest 70 | 60 70 40 . Shots Fired 65 | 30 20 14 1 Gun 64 | 30 19 14 1 Cannon . | . . . . Launcher 1 | . 1 . . Special . | . . . . Kinetic 26 | 14 1 10 1 Thermal 38 | 16 18 4 . Explosive 1 | . 1 . . Electromagnetic . | . . . . Robot Hit Streak 7 | 4 7 4 . Robot Miss Streak 7 | 2 2 7 . Penetration Max . | . . . . Secondary Targets . | . . . . Shots Hit Robots 56 | 20 13 23 . Core Hits 19 | 3 9 6 1 Critical Kills 1 | . . 1 . Critical Parts Destroyed 2 | . . 2 . Critical Strikes 3 | . . 3 . Smash 3 | . . 3 . Melee Attacks 24 | . . 24 . Impact 24 | . . 24 . Slashing . | . . . . Piercing . | . . . . Sneak Attacks . | . . . . Combat Hostiles . | . . . . Follow-up Attacks . | . . . . Damage Inflicted 1166 | 232 295 632 7 Guns 439 | 232 150 57 . Cannons . | . . . . Explosions 145 | . 145 . . Melee 567 | . . 567 . Ramming 15 | . . 8 7 Kinetic 114 | 88 11 15 . Thermal 325 | 144 139 42 . Explosive 145 | . 145 . . Electromagnetic . | . . . . Impact 567 | . . 567 . Slashing . | . . . . Piercing . | . . . . Highest Corruption 16 | . . 16 16 Average Corruption 13 | . . 11 16 Corruption Purged . | . . . . Corruption Blocked . | . . . . Effects 12 | . . 6 6 Message Errors 3 | . . 2 1 Matter Fused 1 | . . . 1 Heat Flow Errors 4 | . . 2 2 Energy Discharges 2 | . . 1 1 Data Loss (minor) 1 | . . 1 . Misfires 1 | . . . 1 Overload Shots . | . . . . Overflow Damage 55 | . . 55 . Projectiles . | . . . . Explosions . | . . . . Melee 55 | . . 55 . Knockbacks . | . . . . Impact . | . . . . Kinetic . | . . . . Secondary . | . . . . Self-Inflicted Damage 31 | . 29 . 2 Shots 1 | . 1 . . Rammed 3 | . . . 3 Targets Rammed 4 | . . 1 3 Kicked 1 | . . 1 . Crushed . | . . . . Highest Temperature 237 | 164 . 237 212 Average Temperature 95 | 89 . 100 108 Received Heat Transfer 471 | 90 42 42 297 Siege Activations . | . . . . Martial Activations . | . . . . Shielding Activations . | . . . . Robots Disrupted . | . . . . Combat Hostiles . | . . . . Robots Corrupted 3 | . . 3 . Combat Hostiles 3 | . . 3 . Parts Fried 3 | . . 3 . Impact Corruptions 4 | . . 4 . Robots Melted . | . . . . Combat Hostiles . | . . . . Parts Melted 1 | 1 . . . Heat Transferred 750 | 325 325 100 . Parts Sabotaged . | . . . . Parts Stolen . | . . . . Parts Stripped . | . . . . Power Chain Reactions . | . . . . Alert | -11 -10 -9 -9 ------- Run | Yrd Mat Mat Sto Maximum Alert Level . | . . . . Low Security (%) 100 | 100 100 100 100 Level 1 . | . . . . Level 2 . | . . . . Level 3 . | . . . . Level 4 . | . . . . Level 5 . | . . . . High Security . | . . . . Max Security . | . . . . Peak Influence 115 | 20 48 115 31 Initial 31 | . . 5 31 Average 21 | 2 14 47 7 Influence Increases 305 | 25 75 205 . Destroy 0b10 Robot/C 220 | 20 40 160 . Destroy 0b10 Robot/NC 20 | 5 15 . . Destroy Leader 40 | . 10 30 . Successful Hack 2 | . 2 . . Destroy Structure 8 | . 8 . . Lose Combat Pursuer 15 | . . 15 . Influence Decreases 305 | 25 60 145 75 Entered New Map 54 | . . 10 44 Time Decay 201 | 25 50 105 21 Lost Part 50 | . 10 30 10 Squads Dispatched 3 | . 2 . 1 Investigation . | . . . . Extermination . | . . . . Reinforcement 3 | . 2 . 1 Assault . | . . . . Garrison . | . . . . Intercept . | . . . . Searches Triggered . | . . . . Construction Impeded . | . . . . Haulers Reinforced . | . . . . Active Scanning Responses . | . . . . Cargo Convoy Interrupts . | . . . . Stealth | -11 -10 -9 -9 --------- Run | Yrd Mat Mat Sto Distress Signals 2 | . 1 . 1 Communications Jammed . | . . . . Distress Signals . | . . . . Times Spotted 29 | 1 8 13 7 Peak Tracking Total 7 | 1 4 7 5 Tactical Retreats 1 | . . 1 . Traps | -11 -10 -9 -9 ------- Run | Yrd Mat Mat Sto Traps Triggered . | . . . . Indirectly . | . . . . Trap Hack Attempts . | . . . . Triggered . | . . . . Disarmed . | . . . . Reprogrammed . | . . . . Reused . | . . . . Traps Extracted . | . . . . Installed . | . . . . Triggered . | . . . . Machines | -11 -10 -9 -9 ---------- Run | Yrd Mat Mat Sto Machines Disabled . | . . . . Max in Single Turn . | . . . . Machines Repaired . | . . . . Machines Dismantled . | . . . . Machines Sabotaged . | . . . . Overloaded Fab Kills . | . . . . Hacking | -11 -10 -9 -9 --------- Run | Yrd Mat Mat Sto Machines Accessed 3 | . 2 . 1 Terminals 3 | . 2 . 1 Fabricators . | . . . . Repair Stations . | . . . . Recycling Units . | . . . . Scanalyzers . | . . . . Garrison Access . | . . . . Total Hacks 8 | . 6 . 2 Successful 6 | . 5 . 1 Failed 2 | . 1 . 1 Catastrophic . | . . . . Database Lockouts . | . . . . Manual . | . . . . Terminals 8 | . 6 . 2 Fabricators . | . . . . Repair Stations . | . . . . Recycling Units . | . . . . Scanalyzers . | . . . . Garrison Access . | . . . . Terminal Hacks 6 | . 5 . 1 Record 4 | . 3 . 1 Alert Level 1 | . 1 . . Investigation Status 1 | . 1 . . Fabricator Hacks . | . . . . Repair Station Hacks . | . . . . Recycling Unit Hacks . | . . . . Scanalyzer . | . . . . Garrison Access Hacks . | . . . . Unauthorized Hacks . | . . . . Terminals . | . . . . Fabricators . | . . . . Repair Stations . | . . . . Recycling Units . | . . . . Scanalyzers . | . . . . Garrison Access . | . . . . Data Cores Recovered . | . . . . Used . | . . . . Hacking Detections 2 | . 1 . 1 Full Trace Events . | . . . . Feedback Events . | . . . . Feedback Blocked . | . . . . Robot Schematics Acquired . | . . . . Robots Built . | . . . . Authchips . | . . . . Time . | . . . . Total Robot Build Rating . | . . . . Part Schematics Acquired . | . . . . Parts Built . | . . . . Authchips . | . . . . Time . | . . . . Total Part Build Rating . | . . . . Part Studies Acquired . | . . . . Parts Repaired . | . . . . Time . | . . . . Parts Recycled . | . . . . Recycled Matter . | . . . . Retrieved Matter . | . . . . Retrieved Components . | . . . . Parts Scanalyzed . | . . . . Part Schematics Acquired . | . . . . Parts Damaged . | . . . . Bothacking | -11 -10 -9 -9 ------------ Run | Yrd Mat Mat Sto Used RIF Installer . | . . . . Robots Hacked . | . . . . Non-combat . | . . . . Combat . | . . . . Robot Hacks Applied . | . . . . Relay Couplers Released . | . . . . Fabnet Peak Effective % . | . . . . Robots Rewired . | . . . . Allies Hacked . | . . . . Hacks Repelled . | . . . . Allies | -11 -10 -9 -9 -------- Run | Yrd Mat Mat Sto Total Allies . | . . . . Largest Group . | . . . . Highest-Rated Group . | . . . . Highest-Rated Ally . | . . . . Total Orders . | . . . . Ally Attacks . | . . . . Total Damage . | . . . . Kills . | . . . . Allies Corrupted . | . . . . Allies Melted . | . . . . Intel | -11 -10 -9 -9 ------- Run | Yrd Mat Mat Sto Active Infowar (turns) 198 | 84 114 . . Terrain 198 | 84 114 . . Robot Analysis Total . | . . . . Derelict Logs Recovered . | . . . . Drone Launches . | . . . . Drone Recoveries . | . . . . Exploration | -11 -10 -9 -9 ------------- Run | Yrd Mat Mat Sto Turns Passed 920 | 265 202 314 139 Spaces Moved 540 | 137 121 165 117 Core 22 | 20 . . 2 Treads . | . . . . Legs 465 | 117 121 165 62 Wheels 52 | . . . 52 Hover . | . . . . Flight 1 | . . . 1 Fastest Speed 37 | 50 120 120 37 Average Speed 113 | 109 120 120 102 Slowest Speed 250 | 120 120 120 250 Overloaded Moves . | . . . . Propulsion Burnouts . | . . . . Robots Hopped . | . . . . Potential Cave-ins . | . . . . Cave-ins Triggered . | . . . . Exploration Rate (%) 16 | 8 24 10 24 Regions Visited 3 Branch Regions 1 Pre-discovered Areas . | . . . . Known Exits Taken . | . . . . Unknown Exits Taken 3 | 1 1 1 . Scrap Searched . | . . . . Spaces Dug . | . . . . Terrain Destroyed 7 | . 7 . . Melee . | . . . . Projectile . | . . . . AOE 7 | . 7 . . Terrain Rammed . | . . . . Walls Destroyed . | . . . . Machines Disabled . | . . . . Actions | -11 -10 -9 -9 --------- Run | Yrd Mat Mat Sto Total 744 | 225 158 225 136 Wait 54 | 50 2 . 2 Move 537 | 136 120 164 117 Hop . | . . . . Pick Up 26 | 12 6 4 4 Fast Attach 4 | . 2 2 . Attach 20 | 8 1 6 5 Detach 3 | 1 1 1 . Swap 11 | 1 4 4 2 Drop 13 | 1 4 5 3 Fire 48 | 16 18 14 . Melee 24 | . . 24 . Ram 3 | . . . 3 Kick 1 | . . 1 . Crush . | . . . . Escape Stasis . | . . . . Rewire . | . . . . Trap . | . . . . Miscellaneous . | . . . . Route ------- -11/Scrapyard -10/Materials -9/Materials -9/Storage History --------- Turn | Location | Event 2 | -11/Scrapyard | Met Revision 17 80 | -11/Scrapyard | Discovered new exit (range 8) 266 | -11/Scrapyard | Entered Materials 341 | -10/Materials | Build established: Mutant 401 | -10/Materials | Discovered new exit (range 15) 468 | -10/Materials | Entered another Materials area 468 | -9/Materials | Evolved 2 slots: Propulsion x1, Utility x1 471 | -9/Materials | Discovered new exit (range 15) 690 | -9/Materials | Lost 3 parts (1p1u1w) 715 | -9/Materials | System corruption reached 10% 782 | -9/Materials | Entered Storage 858 | -9/Storage | Core integrity fell below 50% 915 | -9/Storage | Core integrity fell below 20% 921 | -9/Storage | Destroyed by G-34 Mercenary with Small Laser Last Messages --------------- Ion Engine destroyed. System corrupted: Heat flow error (+240). Lgt. Ion Engine destroyed. Lgt. Assault Rifle destroyed. Slammed into U-05 Engineer. K-01 Serf collects debris. System corrupted: Energy discharge (-23). K-01 Serf collects debris. Sml. Laser destroyed. K-01 Serf collects debris. Slammed into G-34 Mercenary. Slammed into Y-45 Defender. Destabilizing: Core damaged (-20). System corrupted: Heat flow error (+203). K-01 Serf collects debris. Wheel destroyed. K-01 Serf collects debris. Flying robots can pass through spaces occupied by others, even hostile robots. [Achievement: First Step to Greatness] Map ----- +----------------------------------------------------+ | ????????????????????????????????????? | | ????????????????????????????????????? | | ????????????????????????????????????? | | ????????????????????????????????????? | | ????????????????????????????????????? | | ????????????????????????????????????? | | ????????????????????????????????????? | | ????????????????????????????????????? | | ????????????????????????????????????? | | ????????????????????????????????????? | | ????????????????????????????????????? | | ????????????????????????+???????????? | | ???????????????????????? ???????????? | | ???????????????????????? ???????????? | | ???????????????????????# #??????????? | | ???????????????????????# ##?????????? | | ??????????????????????? ##????????? | | ??????????????????????? ?????????? | | ??????????????????????? ??????????? | | ???????????????????????# #??????????? | | ???????################# #??????????? | | ???????# " Y #??????????? | | ???????# """ ^########Y#####??????? | | ???????# """ #??# g #??????? | | ???????# """ #??# Y k #??????? | | #??????# #??# @ #??????? | | #??????# """ #??# #??????? | | #??????# """ ##############??????? | | #??????# """ ## ##???????? | | ?####### ## "????????? | | ## #####/#/### Y????????? | | % # """ ""???????????? | | " """ ""???????????? | | # """ ""???????????? | | ## ########### ??????????? | | ?###+###?????????# ?????????? | | ??#T #?????????##########?????????? | | ??##"""#????????????????????????????? | | ????????????????????????????????????? | | ????????????????????????????????????? | | ????????????????????????????????????? | | ????????????????????????????????????? | | | | | | | | | | | | | | | | | +----------------------------------------------------+ Best States ------------- Heat Dissipation 50 Energy Generation 10 Energy Capacity 250 Matter Stores 400 Matter Capacity 400 Sight Range 16 Terrain Scan Range 16 Terrain Scan Density 10 Armor Coverage 150 Evasion (%) 55 Item Schematics ----------------- None Robot Schematics ------------------ None Fabricated ------------ Nothing Repaired ---------- Nothing Studied --------- None Alien Tech Used ----------------- None Achievements -------------- A Problem For Future Me First Step to Greatness For Emergencies Only Ghost 'Em I Have A Map? Organ Harvest Power Corrupts Risk Taker Storm Trooper System Compromised There's More Where That Came From Uninvited Guest Use The Force Challenges ------------ None Game ------ Seed ArcAssemblyBallwheel Manual? 0 Play Time 01:01:30 Cumulative 1.0 hours Start 2025.12.08 @ 16:25:16 End 2025.12.08 @ 18:02:02 Sessions 1 Manual Loads 0 Difficulty Rogue Special Mode None Game No. 1 Rogue 1 Adventurer 0 Explorer 0 Win Type - Total 0 Types 0/0/0/0/0/0/0/0/0/0 Lore% 0 Gallery% 1 Achievement% 2 Wizard Run 0 Options --------- Layout 1 ASCII 0 Keyboard 0 Movement Mouse Keybinds 0 Fullscreen 1 Font 24/Smallcaps Map View 50x35 Zoom Use 9% Tactical HUD 0 Map Filters NONE Filters NONE Steam 0 RUN: 91e64ab0-bbe4-454c-97d0-88c3fcd6f06c